Workbook

Sheet BA Sept 2023
A1: COLUMBIA GAS OF KENTUCKY, INC.
A3: CALCULATION OF BALANCING ADJUSTMENT
A4: TO BE EFFECTIVE UNIT 1 SEPTEMBER THROUGH UNIT 21 AUGUST
A5: (AUGUST 29, 2023 - AUGUST 27, 2024)
A7: Line
A8: No. | C8: Description | D8: Detail | E8: Amount
D9: $ | E9: $
A11: 1 | C11: RECONCILIATION OF RATE REFUND ADJUSTMENT
A12: =+A11+1 -> 2 | C12: Total adjustment to have been distributed to
A13: =+A12+1 -> 3 | C13: customers in Case No. 2022-00127 | D13: ='RA 2022-00127'!F9 -> -5760689.31
A14: =+A13+1 -> 4 | C14: Less: actual amount distributed | D14: ='RA 2022-00127'!C29 -> -3634662.327
A16: =+A14+1 -> 5 | C16: REMAINING AMOUNT | E16: =D13-D14 -> -2126026.983
A18: =A16+1 -> 6 | C18: RECONCILIATION OF PREVIOUS PERFORMANCE BASED RATE ADJUSTMENT
A19: =+A18+1 -> 7 | C19: Total adjustment to have been collected from
A20: =+A19+1 -> 8 | C20: customers in Case No. 2022-00127 | D20: ='PBRA 2022-00127'!F9 -> 3763655.45
A21: =+A20+1 -> 9 | C21: Less: actual amount distributed | D21: ='PBRA 2022-00127'!C29 -> 3457651.523
A23: =+A21+1 -> 10 | C23: REMAINING AMOUNT | E23: =D20-D21 -> 306003.9271
A25: =+A23+1 -> 11 | C25: RECONCILIATION OF A PREVIOUS BALANCING ADJUSTMENT
A26: =+A25+1 -> 12 | C26: Total adjustment to have been collected from
A27: =+A26+1 -> 13 | C27: customers in Case No. 2023-00028 | D27: ='BA 2023-00028'!C19 -> 43126.66
A28: =+A27+1 -> 14 | C28: Less: actual amount collected | D28: ='BA 2023-00028'!C21 -> 48271.87
A30: =+A28+1 -> 15 | C30: REMAINING AMOUNT | E30: =D27-D28 -> -5145.21
A32: =+A30+1 -> 16 | C32: RECONCILIATION OF PREVIOUS ACTUAL COST ADJUSTMENT
A33: =+A32+1 -> 17 | C33: Total adjustment to have been collected from
A34: =+A33+1 -> 18 | C34: customers in Case No. 2022-00127 | D34: ='ACA 2022-00127'!J10 -> -6150275.04
A35: =+A34+1 -> 19 | C35: Less: actual amount collected | D35: ='ACA 2022-00127'!D30 -> -5637193.52
A37: =+A35+1 -> 20 | C37: REMAINING AMOUNT | E37: =+D34-D35 -> -513081.52
A39: =+A37+1 -> 21 | C39: TOTAL BALANCING ADJUSTMENT AMOUNT | E39: =SUM(E11:E38) -> -2338249.786
A41: =+A39+1 -> 22 | C41: Divided by: projected sales volumes for the three months
A42: =+A41+1 -> 23 | C42: ended November 30, 2023 | E42: 2172151.225
A45: =A42+1 -> 24 | C45: BALANCING ADJUSTMENT (BA) | E45: =E39/E42 -> -1.07646731

Sheet RA 2022-00127
A1: Columbia Gas of Kentucky, Inc.
A2: Rate Refund Adjustment
A3: Supporting Data
A5: Case No. 2022-00127
A7: Expires Unit 21 May 30, 2023 | D7: Surcharge | E7: Surcharge | F7: Surcharge
C8: Volume | D8: Rate | E8: Amount | F8: Balance
F9: -5760689.31
A10: 2022-06-30 | C10: 259141.2 | D10: -0.3491 | E10: =ROUND(C10*D10,2) -> -90466.19 | F10: =F9-E10 -> -5670223.12
A11: =A10+30 -> 2022-07-30 | C11: 198995 | D11: =D10 -> -0.3491 | E11: =+C11*D11 -> -69469.1545 | F11: =F10-E11 -> -5600753.965
A12: =A11+30 -> 2022-08-29 | C12: 216544.6 | D12: -0.3491 | E12: =+C12*D12 -> -75595.71986 | F12: -5525158.246
A13: 2022-09-28 | C13: 209783.9 | D13: -0.3491 | E13: =+C13*D13 -> -73235.55949 | F13: -5451922.686
A14: 2022-10-28 | C14: 383342.1 | D14: -0.3491 | E14: =+C14*D14 -> -133824.7271 | F14: -5318097.959
A15: 2022-11-27 | C15: 746971.8 | D15: -0.3491 | E15: -260767.8554 | F15: -5057330.104
A16: 2022-12-27 | C16: 1663764.5 | D16: -0.3491 | E16: -580820.187 | F16: -4476509.917
A17: 2023-01-26 | C17: 2154566.8 | D17: -0.3491 | E17: -752159.2699 | F17: -3724350.647
A18: 2023-02-25 | C18: 1760669.8 | D18: -0.3491 | E18: -614649.8272 | F18: -3109700.82
A19: 2023-03-27 | C19: 1276919.8 | D19: -0.3491 | E19: -445772.7022 | F19: -2663928.117
A20: 2023-04-26 | C20: 1017199.8 | D20: -0.3491 | E20: -355104.4502 | F20: -2308823.667
A21: 2023-05-26 | C21: 533474.4 | D21: -0.3491 | E21: -186235.913 | F21: -2122587.754
A22: 2023-06-25 | C22: -9851.7 | D22: -0.3491 | E22: 3439.22847 | F22: -2126026.983
E24: =SUM(E10:E22) -> -3634662.327
A26: SUMMARY:
A27: SURCHARGE AMOUNT | C27: =F9 -> -5760689.31
A29: AMOUNT DISTRIBUTED | C29: =E24 -> -3634662.327
A31: TOTAL REMAINING TO BE
A32: DISTRIBUTED | C32: =C27-C29 -> -2126026.983

Sheet PBRA 2022-00127
A1: Columbia Gas of Kentucky, Inc.
A2: PBR Incentive Adjustment
A3: Supporting Data
A5: Case No. 2022-00127
A7: Expires Unit 21 May 30, 2023 | D7: Surcharge | E7: Surcharge | F7: Surcharge
C8: Volume | D8: Rate | E8: Amount | F8: Balance
F9: 3763655.45
A10: 2022-06-30 | C10: 258101.2 | D10: 0.3314 | E10: =ROUND(C10*D10,2) -> 85534.74 | F10: =F9-E10 -> 3678120.71
A11: =A10+30 -> 2022-07-30 | C11: 197955 | D11: =D10 -> 0.3314 | E11: =+C11*D11 -> 65602.287 | F11: =F10-E11 -> 3612518.423
A12: =A11+30 -> 2022-08-29 | C12: 215508.6 | D12: 0.3314 | E12: =+C12*D12 -> 71419.55004 | F12: 3541098.873
A13: 2022-09-28 | C13: 208747.9 | D13: 0.3314 | E13: =+C13*D13 -> 69179.05406 | F13: 3471919.819
A14: 2022-10-28 | C14: 382438.1 | D14: 0.3314 | E14: =+C14*D14 -> 126739.9863 | F14: 3345179.833
A15: 2022-11-27 | C15: 745988 | D15: 0.3314 | E15: 247220.4232 | F15: 3097959.409
A16: 2022-12-27 | C16: 1664204 | D16: 0.3314 | E16: 551517.2056 | F16: 2546442.204
A17: 2023-01-26 | C17: 2154594.6 | D17: 0.3314 | E17: 714032.6504 | F17: 1832409.553
A18: 2023-02-25 | C18: 1790403.18 | D18: 0.3314 | E18: 593339.6139 | F18: 1239069.939
A19: 2023-03-27 | C19: 1277363.2 | D19: 0.3314 | E19: 423318.1645 | F19: 815751.775
A20: 2023-04-26 | C20: 1017951.7 | D20: 0.3314 | E20: 337349.1934 | F20: 478402.5816
A21: 2023-05-26 | C21: 530064.9 | D21: 0.3314 | E21: 175663.5079 | F21: 302739.0737
A22: 2023-06-25 | C22: -9851.7 | D22: 0.3314 | E22: -3264.85338 | F22: 306003.9271
E24: =SUM(E10:E22) -> 3457651.523
A26: SUMMARY:
A27: SURCHARGE AMOUNT | C27: =F9 -> 3763655.45
A29: AMOUNT COLLECTED | C29: =E24 -> 3457651.523
A31: TOTAL REMAINING TO BE
A32: COLLECTED | C32: =C27-C29 -> 306003.9271

Sheet BA 2023-00028
A1: Columbia Gas of Kentucky, Inc.
A2: Balancing Adjustment
A3: Supporting Data
A5: Case No. 2023-00028
A7: Expires: June 30, 2023 | D7: Surcharge | E7: Surcharge | F7: Surcharge
C8: Volume | D8: Rate | E8: Amount | F8: Balance
A9: Beginning Balance | F9: 43126.66
A10: ='ACA 2022-00127'!A20 -> 2023-03-01 | C10: 1301357.3 | D10: 0.017 | E10: =ROUND(C10*D10,2) -> 22123.07 | F10: =F9-E10 -> 21003.59
A11: ='ACA 2022-00127'!A21 -> 2023-04-01 | C11: 1017951.7 | D11: =D10 -> 0.017 | E11: =ROUND(C11*D11,2) -> 17305.18 | F11: =F10-E11 -> 3698.41
A12: ='ACA 2022-00127'!A22 -> 2023-05-01 | C12: 530064.9 | D12: =D11 -> 0.017 | E12: =ROUND(C12*D12,2) -> 9011.1 | F12: =F11-E12 -> -5312.69
A13: ='ACA 2022-00127'!A23 -> 2023-06-01 | C13: -9851.7 | D13: =D12 -> 0.017 | E13: =ROUND(C13*D13,2) -> -167.48 | F13: =F12-E13 -> -5145.21
A15: TOTAL SURCHARGE COLLECTED
A18: SUMMARY:
A19: SURCHARGE AMOUNT | C19: =+F9 -> 43126.66
A21: AMOUNT COLLECTED | C21: =SUM(E10:E13) -> 48271.87
A23: REMAINING BALANCE | C23: =C19-C21 -> -5145.21

Sheet ACA 2022-00127
A1: Columbia Gas of Kentucky, Inc.
A2: Actual Cost Adjustment YR2022 QTR1
A3: Supporting Data
A6: Case No. 2022-00127
C7: Tariff | G7: Choice
A8: Expires: June 30, 2023 | D8: Refund | E8: Refund | H8: Refund | I8: Refund | J8: Refund
C9: Volume | D9: Rate | E9: Amount | G9: Volume | H9: Rate | I9: Amount | J9: Balance
J10: -6150275.04
A11: 2022-06-01 | C11: 256845 | D11: -0.5415 | E11: =ROUND(C11*D11,2) -> -139081.57 | G11: 1256.2 | H11: -0.0204 | I11: =ROUND(G11*H11,2) -> -25.63 | J11: =J10-E11-I11 -> -6011167.84
A12: 2022-07-01 | C12: 196636.9 | D12: =D11 -> -0.5415 | E12: =ROUND(C12*D12,2) -> -106478.88 | G12: 1318.1 | H12: =H11 -> -0.0204 | I12: =ROUND(G12*H12,2) -> -26.89 | J12: =J11-E12-I12 -> -5904662.07
A13: 2022-08-01 | C13: 214713.7 | D13: -0.5415 | E13: -116267.47 | G13: 794.9 | H13: -0.0204 | I13: -16.22 | J13: =J12-E13-I13 -> -5788378.38
A14: 2022-09-01 | C14: 208081.2 | D14: -0.5415 | E14: -112675.97 | G14: 666.7 | H14: -0.0204 | I14: -13.6 | J14: =J13-E14-I14 -> -5675688.81
A15: 2022-10-01 | C15: 381520.3 | D15: -0.5415 | E15: -206593.24 | G15: 917.8 | H15: -0.0204 | I15: -18.72 | J15: -5469076.85
A16: 2022-11-01 | C16: 744830.3 | D16: -0.5415 | E16: -403325.61 | G16: 1157.7 | H16: -0.0204 | I16: -23.62 | J16: -5065727.62
A17: 2022-12-01 | C17: 1660498.3 | D17: -0.5415 | E17: -899159.83 | G17: 3705.7 | H17: -0.0204 | I17: -75.6 | J17: -4166492.19
A18: 2023-01-01 | C18: 2151890.8 | D18: -0.5415 | E18: -1165248.87 | G18: 2703.8 | H18: -0.0204 | I18: -55.16 | J18: -3001188.16
A19: 2023-02-01 | C19: 1786810.58 | D19: -0.5415 | E19: -967557.93 | G19: 3592.6 | H19: -0.0204 | I19: -73.29 | J19: -2033556.94
A20: 2023-03-01 | C20: 1273392.7 | D20: -0.5415 | E20: -689542.15 | G20: 3970.5 | H20: -0.0204 | I20: -81 | J20: -1343933.79
A21: 2023-04-01 | C21: 1012474.3 | D21: -0.5415 | E21: -548254.83 | G21: 5477.4 | H21: -0.0204 | I21: -111.74 | J21: -795567.22
A22: 2023-05-01 | C22: 529159.7 | D22: -0.5415 | E22: -286539.98 | G22: 905.2 | H22: -0.0204 | I22: -18.47 | J22: -509008.77
A23: 2023-06-01 | C23: -7430 | D23: -0.5415 | E23: 4023.35 | G23: -2421.7 | H23: -0.0204 | I23: 49.4 | J23: -513081.52
A27: SUMMARY:
A28: REFUND AMOUNT | D28: =J10 -> -6150275.04
A29: LESS
A30: AMOUNT REFUNDED | D30: =SUM(E11:E23,I11:I23) -> -5637193.52
A33: TOTAL REMAINING REFUND | D33: =D28-D30 -> -513081.52
